Cogmind - Beta 9.2 --- EXPLORER MODE // 2019.11.23 @ 08:48:13 Player: Sartorius Result: Self-destructed Performance ------------- Evolutions (1) 500 Regions Visited (3) 600 Robots Destroyed (8) 40 Value Destroyed (103) 103 Prototype IDs (0) 0 Alien Tech Used (0) 0 Bonus (0) 0 TOTAL SCORE: 1243 Bonus ------- None Cogmind --------- Core Integrity 358/400 Matter 300/300 Energy 100/100 System Corruption 0% Temperature Cool (0) Movement Core (50) Location -9/Materials Parts ------- > --- POWER (2) -------- (None) > --- PROPULSION (2) --- (None) > --- UTILITY (3) ------ Targeting Computer Power Shielding Propulsion Shielding > --- WEAPON (3) ------- (None) > --- INVENTORY (4) ---- Medium Storage Unit Small Battery (100) High-capacity Matter Pod (164) Peak State ------------ > --- POWER ------------ Ion Engine Ion Engine > --- PROPULSION ------- Aluminum Leg Aluminum Leg > --- UTILITY ---------- Targeting Computer Propulsion Shielding > --- WEAPON ----------- EM Pulse Gun Small Laser > --- INVENTORY -------- Medium Storage Unit Power Shielding [Rating: 8] Favorites ----------- Power Ion Engine Engine Ion Engine Propulsion Aluminum Leg Leg Aluminum Leg Utility Targeting Computer Processor Targeting Computer Protection Propulsion Shielding Weapon EM Pulse Gun Energy Gun EM Pulse Gun Special Weapon Mining Laser Build | -11 -10 -10 -9 ------- Run | Scr Mat Min Mat Slots Evolved 3 | . 1 . 2 Power 1 | . 1 . . Propulsion . | . . . . Utility 1 | . . . 1 Weapon 1 | . . . 1 Parts Attached 11 | 8 2 . 1 Power 2 | 1 1 . . Engine 2 | 1 1 . . Core . | . . . . Reactor . | . . . . Propulsion 2 | 2 . . . Treads . | . . . . Leg 2 | 2 . . . Wheel . | . . . . Hover . | . . . . Flight . | . . . . Utility 4 | 3 . . 1 Device . | . . . . Storage . | . . . . Processor 2 | 2 . . . Hackware . | . . . . Protection 2 | 1 . . 1 Artifact . | . . . . Weapon 3 | 2 1 . . Energy Gun 2 | 2 . . . Energy Cannon . | . . . . Ballistic Gun . | . . . . Ballistic Cannon . | . . . . Launcher . | . . . . Special Weapon 1 | . 1 . . Impact Weapon . | . . . . Slashing Weapon . | . . . . Piercing Weapon . | . . . . Special Melee Weapon . | . . . . Unidentified Prototypes . | . . . . Parts Lost 7 | . . 2 5 Power 1 | . . . 1 Propulsion 2 | . . . 2 Utility . | . . . . Weapon 4 | . . 2 2 Highest Loss Streak 5 | . . 2 5 Average Slot Usage (%) 92 | . 100 94 60 Engine 22 | . 25 25 6 Leg 23 | . 25 25 14 Processor 11 | . 12 12 10 Protection 13 | . 12 12 20 Energy Gun 16 | . 24 9 10 Special Weapon 4 | . . 9 . Naked Turns . | . . . . Heaviest Build 14 | 9 14 14 12 Greatest Support 20 | 20 20 20 20 Greatest Overweight (x) . | . . . . Average Overweight (x) . | . . . . Largest Inventory Capacity 4 | 4 4 4 4 Average Capacity 4 | 4 4 4 4 Most Carried 4 | 4 4 4 3 Average Carried 3 | 3 3 4 3 Final Capacity 4 | 4 4 4 4 Final Carried 4 | 3 4 4 3 Class Distribution -------------------- 100% | Mutant Dominant Class ---------------- Mutant | -10/Materials Mutant | -10/Mines Mutant | -9/Materials Resources | -11 -10 -10 -9 ----------- Run | Scr Mat Min Mat Matter Collected 439 | 256 34 149 . Remotely . | . . . . Salvage Created 115 | . 27 77 11 Parts 11 | . 3 5 3 Haulers Intercepted . | . . . . Recyclers Shooed . | . . . . Parts Field Recycled . | . . . . Retrieved Matter . | . . . . Parts Self-Destructed . | . . . . Prevented . | . . . . Kills | -11 -10 -10 -9 ------- Run | Scr Mat Min Mat Combat Hostiles Destroyed 8 | . 2 5 1 Guns 8 | . 2 5 1 Classes Destroyed 3 | . 1 2 . Swarmer 5 | . 2 2 1 Demolisher 1 | . . 1 . Assembled 2 | . . 2 . Best Kill Streak 3 | . 2 3 1 Combat Bots Only 3 | . 2 3 1 Max Kills in Single Turn 1 | . 1 1 1 Gunslinging . | . . . . Exploded . | . . . . Melee . | . . . . Uniques/NPCs Destroyed . | . . . . Combat | -11 -10 -10 -9 -------- Run | Scr Mat Min Mat Damage Taken 597 | . 3 416 178 Core 126 | . . 84 42 Absorbed by Shields . | . . . . Core Remaining (%) 83 | 100 . 66 . Volleys Fired 26 | . 2 19 5 Largest 2 | . 2 1 2 Hottest 80 | . 80 40 60 Shots Fired 31 | . 4 19 8 Gun 31 | . 4 19 8 Cannon . | . . . . Launcher . | . . . . Special . | . . . . Kinetic . | . . . . Thermal 10 | . 2 . 8 Explosive . | . . . . Electromagnetic 21 | . 2 19 . Robot Hit Streak 7 | . 3 6 7 Robot Miss Streak 1 | . . 1 1 Penetration Max . | . . . . Secondary Targets 1 | . . . 1 Max Gunslinging Chain 1 | . . . 1 Shots Hit Robots 24 | . 3 14 7 Core Hits 13 | . 2 8 3 Critical Hits . | . . . . Critical Kills . | . . . . Critical Parts Destroyed . | . . . . Melee Attacks . | . . . . Impact . | . . . . Slashing . | . . . . Piercing . | . . . . Sneak Attacks . | . . . . Combat Hostiles . | . . . . Follow-up Attacks . | . . . . Damage Inflicted 273 | . 35 174 64 Guns 273 | . 35 174 64 Cannons . | . . . . Explosions . | . . . . Melee . | . . . . Ramming . | . . . . Kinetic . | . . . . Thermal 75 | . 11 . 64 Explosive . | . . . . Electromagnetic 198 | . 24 174 . Impact . | . . . . Slashing . | . . . . Piercing . | . . . . Highest Corruption . | . . . . Average Corruption . | . . . . Corruption Purged . | . . . . Overload Shots . | . . . . Overflow Damage . | . . . . Projectiles . | . . . . Explosions . | . . . . Melee . | . . . . Knockbacks . | . . . . Impact . | . . . . Kinetic . | . . . . Secondary . | . . . . Self-Inflicted Damage . | . . . . Shots . | . . . . Rammed . | . . . . Targets Rammed . | . . . . Kicked . | . . . . Crushed . | . . . . Highest Temperature 90 | . 66 90 7 Average Temperature 35 | . 35 36 4 Received Heat Transfer 124 | . . 40 84 Siege Activations . | . . . . Robots Corrupted . | . . . . Combat Hostiles . | . . . . Parts Fried . | . . . . Impact Corruptions . | . . . . Robots Melted . | . . . . Combat Hostiles . | . . . . Parts Melted . | . . . . Heat Transferred 284 | . 25 . 259 Parts Sabotaged . | . . . . Parts Stolen . | . . . . Parts Stripped . | . . . . Power Chain Reactions . | . . . . Missiles Intercepted . | . . . . Alert | -11 -10 -10 -9 ------- Run | Scr Mat Min Mat Peak Influence 87 | . 65 87 43 Average Influence 29 | . 34 44 20 Maximum Alert Level . | . . . . Low Security (%) 100 | 100 100 100 100 Level 1 . | . . . . Level 2 . | . . . . Level 3 . | . . . . Level 4 . | . . . . Level 5 . | . . . . High Security . | . . . . Max Security . | . . . . Squads Dispatched . | . . . . Investigation . | . . . . Extermination . | . . . . Reinforcement . | . . . . Assault . | . . . . Garrison . | . . . . Intercept . | . . . . Construction Impeded . | . . . . Haulers Reinforced . | . . . . Stealth | -11 -10 -10 -9 --------- Run | Scr Mat Min Mat Distress Signals . | . . . . Communications Jammed . | . . . . Distress Signals . | . . . . Times Spotted 13 | . 2 6 5 Peak Tracking Total 4 | . 1 2 4 Tactical Retreats . | . . . . Traps | -11 -10 -10 -9 ------- Run | Scr Mat Min Mat Traps Triggered . | . . . . Indirectly . | . . . . Trap Hack Attempts . | . . . . Triggered . | . . . . Disarmed . | . . . . Reprogrammed . | . . . . Reused . | . . . . Traps Extracted . | . . . . Installed . | . . . . Triggered . | . . . . Machines | -11 -10 -10 -9 ---------- Run | Scr Mat Min Mat Machines Disabled . | . . . . Max in Single Turn . | . . . . Machines Sabotaged . | . . . . Garrisons Compromised . | . . . . Overloaded Fab Kills . | . . . . Fab Network Shutdowns . | . . . . Hacking | -11 -10 -10 -9 --------- Run | Scr Mat Min Mat Machines Accessed 3 | . 1 . 2 Terminals 2 | . 1 . 1 Fabricators . | . . . . Repair Stations 1 | . . . 1 Recycling Units . | . . . . Scanalyzers . | . . . . Garrison Access . | . . . . Total Hacks 5 | . 1 . 4 Successful 5 | . 1 . 4 Failed . | . . . . Catastrophic . | . . . . Database Lockouts . | . . . . Manual . | . . . . Terminals 2 | . 1 . 1 Fabricators . | . . . . Repair Stations 3 | . . . 3 Recycling Units . | . . . . Scanalyzers . | . . . . Garrison Access . | . . . . Terminal Hacks 2 | . 1 . 1 Record 1 | . . . 1 Alert Level 1 | . 1 . . Fabricator Hacks . | . . . . Repair Station Hacks 3 | . . . 3 Scan Component 1 | . . . 1 Repair 1 | . . . 1 Refit 1 | . . . 1 Recycling Unit Hacks . | . . . . Scanalyzer . | . . . . Garrison Access Hacks . | . . . . Unauthorized Hacks . | . . . . Terminals . | . . . . Fabricators . | . . . . Repair Stations . | . . . . Recycling Units . | . . . . Scanalyzers . | . . . . Garrison Access . | . . . . Data Cores Recovered . | . . . . Used . | . . . . Hacking Detections 1 | . . . 1 Full Trace Events . | . . . . Feedback Events . | . . . . Feedback Blocked . | . . . . Robot Schematics Acquired . | . . . . Robots Built . | . . . . Matter . | . . . . Time . | . . . . Total Robot Build Rating . | . . . . Part Schematics Acquired . | . . . . Parts Built . | . . . . Matter . | . . . . Time . | . . . . Total Part Build Rating . | . . . . Parts Repaired 1 | . . . 1 Time 26 | . . . 26 Parts Recycled . | . . . . Recycled Matter . | . . . . Retrieved Matter . | . . . . Retrieved Components . | . . . . Parts Scanalyzed . | . . . . Part Schematics Acquired . | . . . . Parts Damaged . | . . . . Bothacking | -11 -10 -10 -9 ------------ Run | Scr Mat Min Mat Used RIF Installer . | . . . . Robots Hacked . | . . . . Non-combat . | . . . . Combat . | . . . . Robot Hacks Applied . | . . . . Relay Couplers Released . | . . . . Robots Rewired . | . . . . Allies Hacked . | . . . . Hacks Repelled . | . . . . Allies | -11 -10 -10 -9 -------- Run | Scr Mat Min Mat Total Allies . | . . . . Largest Group . | . . . . Highest-Rated Group . | . . . . Highest-Rated Ally . | . . . . Total Orders . | . . . . Ally Attacks . | . . . . Total Damage . | . . . . Kills . | . . . . Allies Corrupted . | . . . . Allies Melted . | . . . . Intel | -11 -10 -10 -9 ------- Run | Scr Mat Min Mat Robot Analysis Total . | . . . . Derelict Logs Recovered . | . . . . Drone Launches . | . . . . Drone Recoveries . | . . . . Exploration | -11 -10 -10 -9 ------------- Run | Scr Mat Min Mat Turns Passed 461 | 90 159 160 52 Spaces Moved 332 | 67 124 102 39 Core 24 | 10 . . 14 Treads . | . . . . Legs 308 | 57 124 102 25 Wheels . | . . . . Hover . | . . . . Flight . | . . . . Fastest Speed 50 | 50 120 120 50 Average Speed 114 | 109 120 120 94 Slowest Speed 120 | 120 120 120 120 Overloaded Moves . | . . . . Propulsion Burnouts . | . . . . Robots Hopped . | . . . . Cave-ins Triggered . | . . . . Exploration Rate (%) 16 | 4 21 35 5 Regions Visited 3 Branch Regions 1 Pre-discovered Areas . | . . . . Known Exits Taken 3 | 1 1 1 . Unknown Exits Taken . | . . . . Scrap Searched . | . . . . Spaces Dug . | . . . . Terrain Destroyed . | . . . . Melee . | . . . . Projectile . | . . . . AOE . | . . . . Actions | -11 -10 -10 -9 --------- Run | Scr Mat Min Mat Total 376 | 81 130 120 45 Wait . | . . . . Move 329 | 66 123 101 39 Hop . | . . . . Pick Up 9 | 7 2 . . Fast Attach 5 | 4 1 . . Attach 5 | 3 1 . 1 Detach . | . . . . Swap 1 | 1 . . . Drop 1 | . 1 . . Fire 26 | . 2 19 5 Melee . | . . . . Ram . | . . . . Kick . | . . . . Crush . | . . . . Escape Stasis . | . . . . Rewire . | . . . . Trap . | . . . . Miscellaneous . | . . . . Route ------- -11/Scrapyard -10/Materials -10/Mines -9/Materials History --------- Turn | Location | Event 3 | -11/Scrapyard | Identified exit to Materials 3 | -11/Scrapyard | Discovered exit to Materials (range 15) 91 | -11/Scrapyard | Entered Materials 91 | -10/Materials | Evolved 1 slot: Power x1 211 | -10/Materials | Identified exit to Mines 211 | -10/Materials | Discovered exit to Mines (range 14) 250 | -10/Materials | Entered Mines 305 | -10/Mines | Build established: Mutant 337 | -10/Mines | Assembled infested the area 342 | -10/Mines | Assisted by a Guerilla fighting off Assembled 405 | -10/Mines | Identified exit to Materials 405 | -10/Mines | Discovered exit to Materials (range 6) 410 | -10/Mines | Entered Materials 410 | -9/Materials | Evolved 2 slots: Utility x1, Weapon x1 447 | -9/Materials | Repaired Ion Engine? 462 | -9/Materials | Self-destructed Last Messages --------------- >>Scan(Ion Engine) Scanning Ion Engine... Ready to Repair: Ion Engine Rating: 1 Time: 26 >>Repair Repairing Ion Engine... ETC: 26 00435_ Ion Engine destroyed. 00441_ S-10 Pest destroyed. 00441_ Switching to secondary target: Y-45 Defender. 00445_ Aluminum Leg destroyed. [Achievement: Part-time Mechanic] 00447_ >> REPAIR: Completed Ion Engine? 00449_ Backup Laser I destroyed. 00452_ U-05 Engineer lays Concrete. 00453_ Backup Laser I destroyed. 00454_ U-05 Engineer lays Concrete. 00454_ Aluminum Leg destroyed. Map ----- +----------------------------------------------------+ | ?????????????????????????????????????????????????? | | ?????????????????????????????????????????????????? | | ?????????????????????????????????????????????????? | | ?????????????????????????????????????????????????? | | ?????????????????????????????????????????????????? | | ?????????????????????????????????????????????????? | | ?????????????????????????????????????????????????? | | ?????????????????????????????????????????????????? | | ?????????????????????????????????????????????????? | | ?????????????????????????????????????????????????? | | ?????????????????????????????????????????????????? | | ?????????????????????????????????????????????????? | | ?????????????????????????????????????????????????? | | ?????????????????????????????????????????????????? | | ?????????????????????????????????????????????????? | | ?????????????????????????????????????????????????? | | ?????????????????????????????????????????????????? | | ?????????????????????????????????????????????????? | | ?????????????????????????????????????????????????? | | ?????????????????????????????????????????????????? | | ?????????????????????????????????????????????????? | | ?????????????????????????????????????????????????? | | ???????????????? ??????????????????????????????? | | ???????????????? #?????????????????????????????? | | ???????????????? ##########????????????????????? | | ???????????????? # @ #????????????????????? | | ????????????????# # """" #????????????????????? | | ????????????????# # """" #????????????????????? | | ????????????????# # """" #????????????????????? | | ????????????????# # #????????????????????? | | ????????????????# # s"""" #????????????????????? | | ????????????????# # """" #????????????????????? | | ????????????????# # """" #????????????????????? | | ???????????###??# # #????????????????????? | | ??????????##T#### ####+######## #???????????? | | ??????????# * #???????????? | | ??????????# [%= +???????????? | | ??????????# #???????????? | | ??????????####+####### ####### #???????????? | | ???????????# #??# #?????????###???????????? | | ???????????# #??# #???????????????????????? | | ???????????# """ #??# #???????????????????????? | | ???????????# "R #??# #???????????????????????? | | ???????????# """ #??# #???????????????????????? | | ???????????# #??# #???????????????????????? | | ???????????########??# #???????????????????????? | | ?????????????????????# #???????????????????????? | | ?????????????????????# #???????????????????????? | | ?????????????????????+ #???????????????????????? | | ?????????????????????# #???????????????????????? | +----------------------------------------------------+ Best States ------------- Heat Dissipation 28 Energy Generation 15 Energy Capacity 400 Matter Stores 300 Matter Capacity 300 Sight Range 16 Terrain Scan Density 10 Resistance: KI 35 Resistance: TH 35 Resistance: EX 35 Resistance: EM 35 Resistance: I 35 Resistance: S 35 Resistance: P 35 Power Shielding 33 Propulsion Shielding 33 Evasion (%) 50 Targeting Accuracy 5 Item Schematics ----------------- None Robot Schematics ------------------ None Fabricated ------------ Nothing Alien Tech Used ----------------- None Achievements -------------- I Survived The Infestation Part-time Mechanic Challenges ------------ None Game ------ Seed FissionImprinterField Manual? 0 Play Time 00:09:45 Cumulative 9.1 hours Start 2019.11.23 @ 08:39:39 End 2019.11.23 @ 08:48:13 Sessions 1 Manual Loads 0 Difficulty Explorer Special Mode None Game No. 26 Rogue 5 Adventurer 0 Explorer 21 Win Type - Total 0 Types 0/0/0/0/0/0/0 Lore% 11 Gallery% 25 Achievement% 2 Wizard Run 0 Options --------- ASCII 0 Keyboard 0 Movement Mouse Keybinds 0 Fullscreen 0 Font 16/SmallcapsGlow Map View 76x50 Tactical HUD 1 Map Filters NONE Filters NONE Steam 1 RUN: 4a7e30f7-50c9-4612-95e8-9e14f63ad009